fUSD/lending_fUSD_20241030
["ID","MTS","AMOUNT","RATE_DAILY","PERIOD"]
[341058300,1730308291388,-319.278894,0.00042999,14]
[341058301,1730308291398,-500.0,0.00042999,14]
[341058302,1730308291411,-500.0,0.00042999,14]
[341058303,1730308291420,-500.0,0.00042999,14]
[341058304,1730308291430,-208.5150392,0.00042999,14]
[341058305,1730308291440,-151.0,0.00042999,7]
[341058306,1730308291450,-646.39,0.00042999,14]
[341058307,1730308291460,-646.39,0.00042999,14]
[341058308,1730308291472,-646.39,0.00042999,14]
[341058309,1730308291484,-646.39,0.00042999,14]
[341058310,1730308291495,-646.39,0.00042999,14]
[341058311,1730308291505,-646.39,0.00042999,14]
[341058312,1730308291516,-646.52996943,0.00042999,14]
[341058313,1730308291528,-746.26,0.00042999,14]
[341058314,1730308291539,-746.26,0.00042999,14]
[341058315,1730308291549,-746.26,0.00042999,14]
[341058316,1730308291559,-746.26,0.00042999,14]
[341058317,1730308291569,-746.26,0.00042999,14]
[341058318,1730308291579,-746.26,0.00042999,14]
[341058319,1730308291589,-746.2976037,0.00042999,14]
[341058320,1730308291599,-1558.05,0.00042999,14]
[341058321,1730308291611,-1558.05,0.00042999,14]
[341058322,1730308291623,-1558.05,0.00042999,14]
[341058323,1730308291633,-1558.05,0.00042999,14]
[341058324,1730308291645,-1558.10160939,0.00042999,14]
[341058325,1730308291655,-697.79,0.00042999,14]
[341058326,1730308291665,-697.79,0.00042999,14]
[341058327,1730308291674,-697.79,0.00042999,14]
[341058328,1730308291686,-697.79,0.00042999,14]
[341058329,1730308291699,-697.79,0.00042999,14]
[341058330,1730308291708,-697.79,0.00042999,14]
[341058331,1730308291717,-697.95664162,0.00042999,14]
[341058332,1730308291726,-752.49,0.00042999,14]
[341058333,1730308291735,-752.49,0.00042999,14]
[341058334,1730308291744,-752.49,0.00042999,14]
[341058335,1730308291754,-752.49,0.00042999,14]
[341058336,1730308291763,-752.49431399,0.00042999,14]
[341058337,1730308291773,-1443612.28,0.00043,60]
[341058338,1730308291782,-1189.7,0.00043,2]
[341058339,1730308291791,-3000.0,0.00043,2]
[341058340,1730308291800,-3000.0,0.00043,2]
[341058341,1730308291810,-3000.0,0.00043,2]
[341058342,1730308291819,-3000.0,0.00043,2]
[341058343,1730308291828,-3000.0,0.00043,2]
[341058344,1730308291837,-2000.0,0.00043,30]
[341058345,1730308291847,-2000.0,0.00043,30]
[341058346,1730308291856,-2000.0,0.00043,30]
[341058347,1730308291866,-2000.0,0.00043,30]
[341058348,1730308291875,-2000.0,0.00043,30]
[341058349,1730308291885,-2000.0,0.00043,30]
[341058350,1730308291894,-400.0,0.00043,120]
[341058351,1730308291904,-2000.0,0.00043,30]
[341058352,1730308291914,-2000.0,0.00043,30]
[341058353,1730308291926,-2000.0,0.00043,30]
[341058354,1730308291936,-62412.14108057,0.00043,2]
[341058355,1730308291945,-2000.0,0.00043,30]
[341058356,1730308291956,-300.0,0.00043,120]
[341058357,1730308291968,-151.0,0.00043,7]
[341058358,1730308291978,-151.0,0.00043,7]
[341058359,1730308291989,-229.618148,0.00043,7]
[341058360,1730308292000,-229.618148,0.00043,7]
[341058361,1730308292013,-1500.0,0.00043,10]
[341058362,1730308292024,-1500.0,0.00043,10]
[341058363,1730308292034,-1513.97,0.00043,10]
[341058364,1730308292043,-1500.0,0.00043,10]
[341058365,1730308292053,-1500.0,0.00043,10]
[341058366,1730308292062,-158.974698,0.00043,14]
[341058367,1730308292071,-158.974698,0.00043,14]
[341058368,1730308292081,-205.119127,0.00043,14]
[341058369,1730308292090,-411.530528,0.00043,14]
[341058370,1730308292100,-411.530528,0.00043,14]
[341058371,1730308292109,-156.54143,0.00043,14]
[341058372,1730308292118,-319.278894,0.00043,14]
[341058373,1730308292127,-319.278894,0.00043,14]
[341058374,1730308292138,-151.0,0.00043,7]
[341058375,1730308292147,-150.0,0.00043012,2]
[341058376,1730308292157,-150.0,0.00043032,2]
[341058377,1730308292166,-150.0,0.00043043,2]
[341058378,1730308292176,-150.0,0.00043048,2]
[341058379,1730308292187,-150.0,0.00043055,2]
[341058380,1730308292196,-150.0,0.00043057,2]
[341058381,1730308292205,-150.0,0.00043057,2]
[341058382,1730308292215,-150.0,0.0004307,2]
[341058383,1730308292225,-150.0,0.00043106,2]
[341058384,1730308292235,-150.0,0.00043116,2]
[341058385,1730308292244,-150.0,0.00043118,2]
[341058386,1730308292254,-414.23237937,0.00043128,15]
[341058387,1730308292263,-150.0,0.00043139,2]
[341058388,1730308292273,-226.98927487,0.00043144,15]
[341058389,1730308292283,-3300.69,0.0004315,120]
[341058390,1730308292293,-150.0,0.00043152,2]
[341058391,1730308292302,-150.0,0.00043162,2]
[341058392,1730308292312,-150.0,0.00043185,2]
[341058393,1730308292322,-150.0,0.00043209,2]
[341058394,1730308292331,-150.0,0.00043214,2]
[341058395,1730308292341,-150.0,0.00043215,2]
[341058396,1730308292350,-309.24472639,0.00043234,2]
[341058397,1730308292360,-150.0,0.00043251,2]
[341058398,1730308292369,-1032.57883512,0.00043254,10]
[341058399,1730308292379,-1147.78258079,0.00043254,10]
[341058400,1730308292388,-1160.91892859,0.00043254,10]
[341058401,1730308292398,-150.0,0.00043258,2]
[341058402,1730308292412,-150.0,0.00043258,2]
[341058403,1730308292421,-150.0,0.00043259,2]
[341058404,1730308292434,-150.0,0.00043269,2]
[341058405,1730308292443,-150.0,0.0004327,2]
[341058406,1730308292453,-256.20505689,0.00043289,2]
[341058407,1730308292463,-150.0,0.00043296,2]
[341058408,1730308292472,-2404.38126018,0.000433,4]
[341058409,1730308292484,-1021.0,0.000433,7]
[341058410,1730308292495,-150.0,0.000433,2]
[341058411,1730308292504,-150.0,0.00043308,2]
[341058412,1730308292514,-150.0,0.00043318,2]
[341058413,1730308292616,-150.0,0.00043336,2]
[341058414,1730308292625,-150.0,0.00043341,2]
[341058415,1730308292635,-561.77562001,0.00043342,2]
[341058416,1730308292644,-150.0,0.00043373,2]
[341058417,1730308292653,-150.0,0.00043383,2]
[341058418,1730308292662,-5652.65,0.00043384,7]
[341058419,1730308292672,-4124.32,0.00043384,7]
[341058420,1730308292682,-5074.43,0.00043384,7]
[341058421,1730308292691,-5921.21,0.00043384,7]
[341058422,1730308292700,-9053.44,0.00043384,7]
[341058423,1730308292709,-150.0,0.00043397,2]
[341058424,1730308292718,-150.0,0.00043411,2]
[341058425,1730308292727,-150.0,0.00043412,2]
[341058426,1730308292736,-150.0,0.00043491,2]
[341058427,1730308292745,-150.0,0.00043498,2]
[341058428,1730308292754,-150.0,0.00043499,2]
[341058429,1730308292763,-87038.32339864,0.000435,2]
[341058430,1730308292773,-3445.96,0.000435,7]
[341058431,1730308292782,-600.0,0.000435,15]
[341058432,1730308292791,-254.71,0.00043505,2]
[341058433,1730308292800,-150.0,0.00043528,2]
[341058434,1730308292810,-150.0,0.00043542,2]
[341058435,1730308292819,-150.0,0.00043561,2]
[341058436,1730308292828,-360.82,0.00043562,2]
[341058437,1730308292837,-150.0,0.00043562,2]
[341058438,1730308292847,-150.0,0.00043562,2]
[341058439,1730308292856,-150.0,0.00043562,2]
[341058440,1730308292865,-150.0,0.00043562,2]
[341058441,1730308292875,-150.0,0.00043562,2]
[341058442,1730308292884,-155.32,0.00043562,2]
[341058443,1730308292894,-155.03,0.00043562,2]
[341058444,1730308292903,-360.82,0.00043562,2]
[341058445,1730308292912,-222.82,0.00043562,2]
[341058446,1730308292922,-155.57,0.00043562,2]
[341058447,1730308292933,-150.0,0.00043562,2]
[341058448,1730308292942,-360.82,0.00043562,2]
[341058449,1730308292951,-150.0,0.00043562,2]
[341058450,1730308292960,-360.82,0.00043562,2]
[341058451,1730308292969,-150.0,0.00043562,2]
[341058452,1730308292979,-150.0,0.00043562,2]
[341058453,1730308292988,-150.0,0.00043587,2]
[341058454,1730308292997,-150.0,0.00043594,2]
[341058455,1730308293006,-801.22,0.000436,60]
[341058456,1730308293016,-600.0,0.000436,15]
[341058457,1730308293025,-150.0,0.00043644,2]
[341058458,1730308293035,-150.0,0.00043645,2]
[341058459,1730308293044,-150.0,0.00043666,2]
[341058460,1730308293054,-150.0,0.00043681,2]
[341058461,1730308293063,-150.0,0.00043689,2]
[341058462,1730308293073,-150.0,0.00043691,2]
[341058463,1730308293083,-11732.19,0.00043693,7]
[341058464,1730308293092,-7004.51,0.00043693,7]
[341058465,1730308293101,-574.87,0.000437,30]
[341058466,1730308293111,-500.0,0.000437,120]
[341058467,1730308293120,-500.0,0.000437,120]
[341058468,1730308293130,-500.0,0.000437,120]
[341058469,1730308293139,-500.0,0.000437,120]
[341058470,1730308293148,-500.0,0.000437,120]
[341058471,1730308293158,-500.0,0.000437,120]
[341058472,1730308293168,-500.0,0.000437,120]
[341058473,1730308293178,-500.0,0.000437,120]
[341058474,1730308293189,-500.0,0.000437,120]
[341058475,1730308293199,-500.0,0.000437,120]
[341058476,1730308293209,-500.0,0.000437,120]
[341058477,1730308293219,-500.0,0.000437,120]
[341058478,1730308293229,-500.0,0.000437,120]
[341058479,1730308293239,-500.0,0.000437,120]
[341058480,1730308293248,-500.0,0.000437,120]
[341058481,1730308293257,-500.0,0.000437,120]
[341058482,1730308293267,-500.0,0.000437,120]
[341058483,1730308293277,-500.0,0.000437,120]
[341058484,1730308293286,-500.0,0.000437,120]
[341058485,1730308293295,-500.0,0.000437,120]
[341058486,1730308293305,-500.0,0.000437,120]
[341058487,1730308293314,-500.0,0.000437,120]
[341058488,1730308293324,-500.0,0.000437,120]
[341058489,1730308293333,-500.0,0.000437,120]
[341058490,1730308293342,-500.0,0.000437,120]
[341058491,1730308293352,-500.0,0.000437,120]
[341058492,1730308293361,-500.0,0.000437,120]
[341058493,1730308293371,-500.0,0.000437,120]
[341058494,1730308293380,-500.0,0.000437,120]
[341058495,1730308293390,-500.0,0.000437,120]
[341058496,1730308293399,-500.0,0.000437,120]
[341058497,1730308293413,-500.0,0.000437,120]
[341058498,1730308293422,-500.0,0.000437,120]
[341058499,1730308293432,-500.0,0.000437,120]
[341058500,1730308293443,-500.0,0.000437,120]
[341058501,1730308293452,-500.0,0.000437,120]
[341058502,1730308293462,-500.0,0.000437,120]
[341058503,1730308293471,-500.0,0.000437,120]
[341058504,1730308293481,-500.0,0.000437,120]
[341058505,1730308293493,-500.0,0.000437,120]
[341058506,1730308293503,-500.0,0.000437,120]
[341058507,1730308293513,-500.0,0.000437,120]
[341058508,1730308293522,-500.0,0.000437,120]
[341058509,1730308293531,-500.0,0.000437,120]
[341058510,1730308293541,-500.0,0.000437,120]
[341058511,1730308293550,-500.0,0.000437,120]
[341058512,1730308293560,-500.0,0.000437,120]
[341058513,1730308293570,-500.0,0.000437,120]
[341058514,1730308293579,-500.0,0.000437,120]
[341058515,1730308293589,-500.0,0.000437,120]
[341058516,1730308293599,-500.0,0.000437,120]
[341058517,1730308293608,-500.0,0.000437,120]
[341058518,1730308293618,-500.0,0.000437,120]
[341058519,1730308293627,-500.0,0.000437,120]
[341058520,1730308293636,-500.0,0.000437,120]
[341058521,1730308293645,-500.0,0.000437,120]
[341058522,1730308293655,-500.0,0.000437,120]
[341058523,1730308293664,-500.0,0.000437,120]
[341058524,1730308293674,-500.0,0.000437,120]
[341058525,1730308293685,-500.0,0.000437,120]
[341058526,1730308293695,-500.0,0.000437,120]
[341058527,1730308293714,-500.0,0.000437,120]
[341058528,1730308293724,-500.0,0.000437,120]
[341058529,1730308293733,-500.0,0.000437,120]
[341058530,1730308293743,-500.0,0.000437,120]
[341058531,1730308293752,-500.0,0.000437,120]
[341058532,1730308293762,-500.0,0.000437,120]
[341058533,1730308293771,-500.0,0.000437,120]
[341058534,1730308293781,-500.0,0.000437,120]
[341058535,1730308293790,-600.0,0.000437,15]
[341058536,1730308293799,-15278.68270951,0.0004371,2]
[341058537,1730308293809,-150.0,0.00043717,2]
[341058538,1730308293818,-150.0,0.0004373,2]
[341058539,1730308293827,-929.24680414,0.00043747,2]
[341058540,1730308293837,-151.0,0.00043747,7]
[341058541,1730308293847,-229.618148,0.00043747,7]
[341058542,1730308293856,-229.61814,0.00043747,7]
[341058543,1730308293865,-158.974698,0.00043747,14]
[341058544,1730308293876,-158.974698,0.00043747,14]
[341058545,1730308293885,-205.119133,0.00043747,14]
[341058546,1730308293894,-411.530528,0.00043747,14]
[341058547,1730308293903,-411.530534,0.00043747,14]
[341058548,1730308293912,-319.278894,0.00043747,14]
[341058549,1730308293922,-319.278886,0.00043747,14]
[341058550,1730308293933,-151.0,0.00043747,7]
[341058551,1730308293943,-115098.84360503,0.00043748,2]
[341058552,1730308293952,-1776.12316849,0.00043749,2]
[341058553,1730308293962,-623.0978477,0.00043751,2]
[341058554,1730308293971,-3770.24585668,0.00043754,2]
[341058555,1730308293981,-150.0,0.00043755,2]
[341058556,1730308293990,-556.15601376,0.00043756,2]
[341058557,1730308293999,-451.52632276,0.00043759,2]
[341058558,1730308294008,-150.0,0.00043762,2]
[341058559,1730308294018,-451.52632276,0.00043763,2]
[341058560,1730308294028,-150.0,0.00043765,2]
[341058561,1730308294037,-451.52632276,0.00043766,2]
[341058562,1730308294134,-1776.12316849,0.00043774,2]
[341058563,1730308294144,-939.30223071,0.00043775,2]
[341058564,1730308294154,-658.58807422,0.00043776,2]
[341058565,1730308294164,-545726.00769726,0.00043777,2]
[341058566,1730308294173,-151.0,0.00043777,7]
[341058567,1730308294183,-451.52632276,0.00043779,2]
[341058568,1730308294193,-939.30223071,0.00043782,2]
[341058569,1730308294202,-922.62804186,0.00043788,2]
[341058570,1730308294212,-623.0978477,0.00043791,2]
[341058571,1730308294221,-19776.13072721,0.00043792,2]
[341058572,1730308294230,-12540.5150816,0.00043793,2]
[341058573,1730308294240,-200.0,0.00043796,2]
[341058574,1730308294249,-150.0,0.00043797,2]
[341058575,1730308294259,-1126.24,0.000438,50]
[341058576,1730308294268,-750.0,0.000438,15]
[341058577,1730308294278,-1000.0,0.000438,7]
[341058578,1730308294287,-556.15601376,0.00043802,2]
[341058579,1730308294296,-150.0,0.00043808,2]
[341058580,1730308294306,-3770.24585668,0.00043808,2]
[341058581,1730308294315,-658.58807422,0.00043814,2]
[341058582,1730308294324,-556.15601376,0.00043814,2]
[341058583,1730308294334,-658.58807422,0.00043815,2]
[341058584,1730308294343,-922.62804186,0.00043816,2]
[341058585,1730308294352,-929.24680414,0.00043818,2]
[341058586,1730308294362,-1403.84351721,0.00043823,2]
[341058587,1730308294372,-922.62804186,0.00043826,2]
[341058588,1730308294381,-929.24680414,0.00043827,2]
[341058589,1730308294391,-8723.04081171,0.00043827,2]
[341058590,1730308294401,-3770.24585668,0.00043834,2]
[341058591,1730308294413,-500.0,0.00043835,14]
[341058592,1730308294423,-500.0,0.00043835,14]
[341058593,1730308294432,-500.0,0.00043835,14]
[341058594,1730308294443,-500.0,0.00043835,14]
[341058595,1730308294452,-500.0,0.00043835,14]
[341058596,1730308294462,-500.0,0.00043835,14]
[341058597,1730308294472,-500.0,0.00043835,14]
[341058598,1730308294482,-500.0,0.00043835,14]
[341058599,1730308294492,-500.0,0.00043835,14]
[341058600,1730308294502,-500.0,0.00043835,14]
[341058601,1730308294512,-500.0,0.00043835,14]
[341058602,1730308294522,-500.0,0.00043835,14]
[341058603,1730308294531,-500.0,0.00043835,14]
[341058604,1730308294542,-500.0,0.00043835,14]
[341058605,1730308294552,-500.0,0.00043835,14]
[341058606,1730308294563,-500.0,0.00043835,14]
[341058607,1730308294573,-500.0,0.00043835,14]
[341058608,1730308294584,-500.0,0.00043835,14]
[341058609,1730308294595,-495.29015608,0.00043835,14]
[341058610,1730308294605,-3300.69,0.00043835,120]
[341058611,1730308294616,-500.0,0.00043835,14]
[341058612,1730308294626,-500.0,0.00043835,14]
[341058613,1730308294636,-500.0,0.00043835,14]
[341058614,1730308294647,-500.0,0.00043835,14]
[341058615,1730308294657,-500.0,0.00043835,14]
[341058616,1730308294667,-500.0,0.00043835,14]
[341058617,1730308294677,-500.0,0.00043835,14]
[341058618,1730308294688,-500.0,0.00043835,14]
[341058619,1730308294697,-500.0,0.00043835,14]
[341058620,1730308294707,-572.17705521,0.00043835,14]
[341058621,1730308294717,-556.15601376,0.00043836,2]
[341058622,1730308294727,-150.0,0.00043838,2]
[341058623,1730308294737,-115098.84360503,0.00043841,2]
[341058624,1730308294747,-167.51263919,0.00043846,28]
[341058625,1730308294756,-1403.84351721,0.00043847,2]
[341058626,1730308294765,-150.0,0.00043848,2]
[341058627,1730308294775,-656.00831996,0.00043852,10]
[341058628,1730308294785,-375.33986498,0.00043852,10]
[341058629,1730308294797,-531.89663962,0.00043852,5]
[341058630,1730308294807,-1000.0,0.00043852,10]
[341058631,1730308294817,-269.22601381,0.00043852,10]
[341058632,1730308294827,-545726.00769726,0.00043857,2]
[341058633,1730308294837,-151.0,0.00043857,7]
[341058634,1730308294847,-12540.5150816,0.00043859,2]
[341058635,1730308294859,-1403.84351721,0.0004386,2]
[341058636,1730308294869,-623.0978477,0.00043864,2]
[341058637,1730308294879,-922.62804186,0.00043864,2]
[341058638,1730308294889,-545726.00769726,0.00043867,2]
[341058639,1730308294899,-929.24680414,0.00043871,2]
[341058640,1730308294908,-451.52632276,0.00043873,2]
[341058641,1730308294918,-19776.13072721,0.00043873,2]
[341058642,1730308294927,-150.0,0.00043876,2]
[341058643,1730308294938,-1776.12316849,0.00043881,2]
[341058644,1730308294947,-1776.12316849,0.00043887,2]
[341058645,1730308294957,-8723.04081171,0.00043888,2]
[341058646,1730308294968,-12540.5150816,0.00043888,2]
[341058647,1730308294978,-1000.0,0.00043889,30]
[341058648,1730308294988,-1776.12316849,0.0004389,2]
[341058649,1730308294997,-1403.84351721,0.00043891,2]
[341058650,1730308295007,-115098.84360503,0.00043894,2]
[341058651,1730308295017,-7677.11237402,0.00043896,30]
[341058652,1730308295027,-929.24680414,0.00043897,2]
[341058653,1730308295036,-658.58807422,0.00043898,2]
[341058654,1730308295046,-3770.24585668,0.00043901,2]
[341058655,1730308295055,-150.0,0.00043906,2]
[341058656,1730308295065,-8723.04081171,0.00043906,2]
[341058657,1730308295074,-939.30223071,0.00043907,2]
[341058658,1730308295083,-115098.84360503,0.00043908,2]
[341058659,1730308295094,-12540.5150816,0.00043908,2]
[341058660,1730308295103,-150.0,0.00043909,2]
[341058661,1730308295113,-623.0978477,0.00043916,2]
[341058662,1730308295123,-922.62804186,0.00043923,2]
[341058663,1730308295133,-8723.04081171,0.00043928,2]
[341058664,1730308295142,-19776.13072721,0.00043931,2]
[341058665,1730308295152,-150.0,0.00043932,2]
[341058666,1730308295161,-12540.5150816,0.00043933,2]
[341058667,1730308295171,-150.0,0.00043935,2]
[341058668,1730308295182,-623.0978477,0.00043943,2]
[341058669,1730308295192,-545726.00769726,0.00043944,2]
[341058670,1730308295202,-3767.51126684,0.00043945,2]
[341058671,1730308295211,-115098.84360503,0.00043945,2]
[341058672,1730308295221,-3770.24585668,0.00043953,2]
[341058673,1730308295230,-939.30223071,0.00043954,2]
[341058674,1730308295240,-455.02670268,0.00043955,30]
[341058675,1730308295250,-658.58807422,0.00043956,2]
[341058676,1730308295260,-1678.562242,0.0004396,20]
[341058677,1730308295271,-451.52632276,0.00043964,2]
[341058678,1730308295282,-19776.13072721,0.00043964,2]
[341058679,1730308295292,-150.0,0.00043965,2]
[341058680,1730308295301,-545726.00769726,0.00043967,2]
[341058681,1730308295311,-545726.00769726,0.00043968,2]
[341058682,1730308295320,-10089.47403233,0.00043968,30]
[341058683,1730308295330,-922.62804186,0.00043969,2]
[341058684,1730308295339,-150.0,0.00043971,2]
[341058685,1730308295349,-658.58807422,0.00043971,2]
[341058686,1730308295359,-224.56904733,0.00043973,2]
[341058687,1730308295368,-3770.24585668,0.00043974,2]
[341058688,1730308295378,-150.0,0.00043976,2]
[341058689,1730308295387,-8723.04081171,0.00043978,2]
[341058690,1730308295397,-8723.04081171,0.00043979,2]
[341058691,1730308295410,-1403.84351721,0.0004398,2]
[341058692,1730308295419,-1000.0,0.0004398,20]
[341058693,1730308295429,-939.30223071,0.0004398,2]
[341058694,1730308295440,-556.15601376,0.00043981,2]
[341058695,1730308295450,-929.24680414,0.00043987,2]
[341058696,1730308295459,-5000.0,0.00043989,60]
[341058697,1730308295468,-939.30223071,0.00043989,2]
[341058698,1730308295479,-1403.84351721,0.00043989,2]
[341058699,1730308295489,-12540.5150816,0.00043989,2]
[341058700,1730308295499,-115098.84360503,0.00043991,2]
[341058701,1730308295508,-556.15601376,0.00043992,2]
[341058702,1730308295518,-19776.13072721,0.00043993,2]
[341058703,1730308295528,-623.0978477,0.00043994,2]
[341058704,1730308295538,-150.0,0.00043997,2]
[341058705,1730308295547,-1776.12316849,0.00043998,2]
[341058706,1730308295557,-19776.13072721,0.00043999,2]
[341058707,1730308295567,-249976.75289045,0.00044,2]
[341058708,1730308295577,-2000.0,0.00044,60]
[341058709,1730308295586,-3700.0,0.00044,2]
[341058710,1730308295595,-2000.07,0.00044,120]
[341058711,1730308295606,-131076.0,0.00044,30]
[341058712,1730308295615,-505.0,0.00044,60]
[341058713,1730308295625,-1538.53875179,0.00044,20]
[341058714,1730308295634,-459.51693334,0.00044,2]
[341058715,1730308295644,-371.185583,0.00044,57]
[341058716,1730308295653,-1000.0,0.00044,20]
[341058717,1730308295663,-1000.0,0.0004402,20]
[341058718,1730308295672,-150.0,0.00044022,2]
[341058719,1730308295683,-865.9365,0.00044037,2]
[341058720,1730308295692,-2000.0,0.00044037,2]
[341058721,1730308295702,-2003.0836,0.00044037,2]
[341058722,1730308295712,-2000.0,0.00044037,2]
[341058723,1730308295721,-1000.0,0.0004404,20]
[341058724,1730308295731,-1327.808652,0.0004404,20]
[341058725,1730308295740,-414.23237937,0.00044044,15]
[341058726,1730308295750,-309.24472639,0.00044044,2]
[341058727,1730308295759,-561.77562001,0.00044044,2]
[341058728,1730308295769,-150.0,0.00044051,2]
[341058729,1730308295779,-152.0,0.00044057,12]
[341058730,1730308295788,-1000.0,0.0004406,20]
[341058731,1730308295798,-1000.0,0.0004406,20]
[341058732,1730308295808,-150.0,0.00044078,2]
[341058733,1730308295818,-500.0,0.00044079,3]
[341058734,1730308295827,-1000.0,0.0004408,20]
[341058735,1730308295837,-1000.0,0.0004408,20]
[341058736,1730308295846,-150.0,0.00044084,2]
[341058737,1730308295856,-500.0,0.00044088,3]
[341058738,1730308295866,-500.0,0.00044096,3]
[341058739,1730308295875,-397.0,0.000441,31]
[341058740,1730308295885,-398.0,0.000441,31]
[341058741,1730308295894,-1000.0,0.000441,20]
[341058742,1730308295903,-1000.0,0.000441,20]
[341058743,1730308295912,-500.0,0.00044105,3]
[341058744,1730308295921,-28151.0913242,0.0004411,2]
[341058745,1730308295930,-150.0,0.0004411,2]
[341058746,1730308295941,-11152.8143527,0.0004411,2]
[341058747,1730308295951,-260078.62717833,0.00044112,7]
[341058748,1730308295960,-150.0,0.00044112,2]
[341058749,1730308295970,-202.15900902,0.00044113,30]
[341058750,1730308295979,-500.0,0.00044114,3]
[341058751,1730308295989,-22716.6256811,0.00044114,2]
[341058752,1730308295999,-17282.1600381,0.00044114,2]
[341058753,1730308296009,-11847.694395,0.00044114,2]
[341058754,1730308296018,-6413.228752,0.00044114,2]
[341058755,1730308296028,-978.7631089,0.00044114,2]
[341058756,1730308296038,-8968.4701474,0.00044114,2]
[341058757,1730308296047,-6784.125942,0.00044114,2]
[341058758,1730308296056,-4599.7817366,0.00044114,2]
[341058759,1730308296066,-2415.4375312,0.00044114,2]
[341058760,1730308296076,-231.0933258,0.00044114,2]
[341058761,1730308296085,-1000.0,0.00044116,120]
[341058762,1730308296095,-1000.0,0.00044116,60]
[341058763,1730308296104,-1000.0,0.00044116,30]
[341058764,1730308296113,-500.0,0.00044123,3]
[341058765,1730308296123,-150.0,0.00044125,2]
[341058766,1730308296133,-150.0,0.00044127,2]
[341058767,1730308296142,-500.0,0.00044132,3]
[341058768,1730308296152,-150.0,0.00044133,2]
[341058769,1730308296161,-1551.72581477,0.00044137,30]
[341058770,1730308296171,-2000.0,0.00044137,7]
[341058771,1730308296181,-200.0,0.00044137,7]
[341058772,1730308296191,-1000.0,0.00044137,30]
[341058773,1730308296201,-195.71774672,0.00044137,30]
[341058774,1730308296211,-500.0,0.0004414,3]
[341058775,1730308296221,-1000.0,0.00044143,60]
[341058776,1730308296231,-200.0,0.00044143,7]
[341058777,1730308296241,-1000.0,0.00044143,32]
[341058778,1730308296250,-1000.0,0.00044143,35]
[341058779,1730308296260,-1000.0,0.00044143,34]
[341058780,1730308296270,-1000.0,0.00044143,36]
[341058781,1730308296280,-200.0,0.00044143,7]
[341058782,1730308296290,-50000.0,0.00044143,2]
[341058783,1730308296300,-50000.0,0.00044143,3]
[341058784,1730308296310,-50000.0,0.00044143,4]
[341058785,1730308296320,-50000.0,0.00044143,5]
[341058786,1730308296330,-50000.0,0.00044143,6]
[341058787,1730308296339,-50000.0,0.00044143,7]
[341058788,1730308296350,-50000.0,0.00044143,8]
[341058789,1730308296360,-50000.0,0.00044143,9]
[341058790,1730308296370,-50000.0,0.00044143,10]
[341058791,1730308296380,-50000.0,0.00044143,11]
[341058792,1730308296390,-1000.0,0.00044144,30]
[341058793,1730308296401,-1000.0,0.00044144,30]
[341058794,1730308296413,-699.0,0.00044144,30]
[341058795,1730308296423,-699.0,0.00044144,30]
[341058796,1730308296432,-699.0,0.00044144,30]
[341058797,1730308296443,-699.0,0.00044144,30]
[341058798,1730308296453,-699.0,0.00044144,30]
[341058799,1730308296463,-699.0,0.00044144,30]